[Event "Titled Tuesday Blitz November 07 Late 2023"]
[White "Silvestre, Christian"]
[Black "Melikhov, Evgeny V."]
[WhiteFideId "30956269"]
[BlackFideId "4122046"]
[WhiteElo "2211"]
[BlackElo "2379"]
[Result "0-1"]
[Round "6"]
[TimeControl "180+1"]
[Date "2023.11.07"]
[WhiteClock "0:00:02"]
[BlackClock "0:00:18"]
[Board "117"]

1. e4 {[%clk 0:03:00]}  c5 {[%clk 0:02:58]} 2. Nc3 {[%clk 0:02:59]}  Nc6 {[%clk 0:02:57]} 3. f4 {[%clk 0:02:58]}  g6 {[%clk 0:02:57]} 4. Nf3 {[%clk 0:02:59]}  Bg7 {[%clk 0:02:57]} 5. Bc4 {[%clk 0:02:57]}  e6 {[%clk 0:02:57]} 6. d3 {[%clk 0:02:57]}  Nge7 {[%clk 0:02:56]} 7. f5 {[%clk 0:02:56]}  O-O {[%clk 0:02:54]} 8. fxe6 {[%clk 0:02:55]}  fxe6 {[%clk 0:02:54]} 9. O-O {[%clk 0:02:55]}  d5 {[%clk 0:02:51]} 10. Bb3 {[%clk 0:02:54]}  d4 {[%clk 0:02:49]} 11. Ne2 {[%clk 0:02:53]}  Na5 {[%clk 0:02:47]} 12. Qe1 {[%clk 0:02:49]}  Nxb3 {[%clk 0:02:46]} 13. axb3 {[%clk 0:02:50]}  Nc6 {[%clk 0:02:41]} 14. Bg5 {[%clk 0:02:47]}  Qc7 {[%clk 0:02:27]} 15. Qh4 {[%clk 0:02:47]}  e5 {[%clk 0:02:19]} 16. Bh6 {[%clk 0:02:46]}  Bxh6 {[%clk 0:02:16]} 17. Qxh6 {[%clk 0:02:45]}  Qg7 {[%clk 0:02:16]} 18. Qh4 {[%clk 0:02:32]}  Bd7 {[%clk 0:02:14]} 19. c3 {[%clk 0:02:13]}  a5 {[%clk 0:02:10]} 20. Nd2 {[%clk 0:02:06]}  Be6 {[%clk 0:02:02]} 21. Nc4 {[%clk 0:02:02]}  Bxc4 {[%clk 0:02:01]} 22. bxc4 {[%clk 0:02:03]}  b6 {[%clk 0:01:58]} 23. cxd4 {[%clk 0:01:58]}  cxd4 {[%clk 0:01:49]} 24. Rxf8+ {[%clk 0:01:45]}  Rxf8 {[%clk 0:01:48]} 25. Rf1 {[%clk 0:01:46]}  Rxf1+ {[%clk 0:01:42]} 26. Kxf1 {[%clk 0:01:47]}  Qf7+ {[%clk 0:01:29]} 27. Ke1 {[%clk 0:01:35]}  Kg7 {[%clk 0:01:13]} 28. Qg3 {[%clk 0:01:29]}  Qe7 {[%clk 0:01:08]} 29. Kf2 {[%clk 0:01:16]}  Qb4 {[%clk 0:00:55]} 30. Qg4 {[%clk 0:01:15]}  Ne7 {[%clk 0:00:49]} 31. Qe6 {[%clk 0:01:12]}  Kf8 {[%clk 0:00:44]} 32. Qf6+ {[%clk 0:01:05]}  Ke8 {[%clk 0:00:43]} 33. Qxe5 {[%clk 0:01:05]}  Qxb2 {[%clk 0:00:43]} 34. Qxd4 {[%clk 0:01:01]}  Qxd4+ {[%clk 0:00:38]} 35. Nxd4 {[%clk 0:01:02]}  a4 {[%clk 0:00:38]} 36. Nb5 {[%clk 0:01:01]}  Nc6 {[%clk 0:00:36]} 37. Ke3 {[%clk 0:01:00]}  Kd7 {[%clk 0:00:33]} 38. d4 {[%clk 0:01:00]}  Nb4 {[%clk 0:00:33]} 39. Kd2 {[%clk 0:00:58]}  Nc6 {[%clk 0:00:31]} 40. Kc3 {[%clk 0:00:57]}  h5 {[%clk 0:00:29]} 41. d5 {[%clk 0:00:46]}  Ne5 {[%clk 0:00:29]} 42. Kb4 {[%clk 0:00:44]}  h4 {[%clk 0:00:28]} 43. Nc3 {[%clk 0:00:36]}  a3 {[%clk 0:00:24]} 44. Kxa3 {[%clk 0:00:29]}  Nxc4+ {[%clk 0:00:24]} 45. Kb4 {[%clk 0:00:29]}  Ne3 {[%clk 0:00:24]} 46. g3 {[%clk 0:00:25]}  h3 {[%clk 0:00:24]} 47. Ne2 {[%clk 0:00:21]}  Nf1 {[%clk 0:00:24]} 48. Nf4 {[%clk 0:00:20]}  Nxg3 {[%clk 0:00:20]} 49. Nxh3 {[%clk 0:00:21]}  Nxe4 {[%clk 0:00:19]} 50. Nf4 {[%clk 0:00:20]}  g5 {[%clk 0:00:18]} 51. Nd3 {[%clk 0:00:17]}  Kd6 {[%clk 0:00:18]} 52. Kc4 {[%clk 0:00:17]}  Nf6 {[%clk 0:00:17]} 53. Nb4 {[%clk 0:00:12]}  Ng4 {[%clk 0:00:17]} 54. h3 {[%clk 0:00:11]}  Nf2 {[%clk 0:00:17]} 55. Kd4 {[%clk 0:00:11]}  Nxh3 {[%clk 0:00:17]} 56. Ke3 {[%clk 0:00:12]}  Nf4 {[%clk 0:00:17]} 57. Kf3 {[%clk 0:00:12]}  Nxd5 {[%clk 0:00:18]} 58. Nd3 {[%clk 0:00:11]}  Nf6 {[%clk 0:00:18]} 59. Nb4 {[%clk 0:00:10]}  Kc5 {[%clk 0:00:18]} 60. Nd3+ {[%clk 0:00:10]}  Kd4 {[%clk 0:00:18]} 61. Nb4 {[%clk 0:00:10]}  b5 {[%clk 0:00:18]} 62. Nc6+ {[%clk 0:00:10]}  Kc3 {[%clk 0:00:18]} 63. Ne7 {[%clk 0:00:02]}  b4 {[%clk 0:00:18]} 0-1


[Site "https://www.chess.com"]

[Event "Titled Tuesday Blitz November 07 Late 2023"]
[White "claudiuprunescu"]
[Black "Hoffmann, Asa"]
[BlackFideId "2001470"]
[WhiteElo "2207"]
[BlackElo "2372"]
[Result "1/2-1/2"]
[Round "6"]
[TimeControl "180+1"]
[Date "2023.11.07"]
[WhiteClock "0:00:43"]
[BlackClock "0:01:08"]
[Board "118"]

1. e4 {[%clk 0:03:00]}  d6 {[%clk 0:02:59]} 2. d4 {[%clk 0:03:00]}  Nf6 {[%clk 0:02:57]} 3. Nc3 {[%clk 0:02:59]}  c6 {[%clk 0:02:57]} 4. Nf3 {[%clk 0:02:57]}  Bg4 {[%clk 0:02:56]} 5. h3 {[%clk 0:02:55]}  Bh5 {[%clk 0:02:52]} 6. Be2 {[%clk 0:02:54]}  e6 {[%clk 0:02:50]} 7. O-O {[%clk 0:02:53]}  d5 {[%clk 0:02:49]} 8. Bg5 {[%clk 0:02:48]}  Be7 {[%clk 0:02:46]} 9. e5 {[%clk 0:02:48]}  Nfd7 {[%clk 0:02:46]} 10. Bxe7 {[%clk 0:02:47]}  Qxe7 {[%clk 0:02:45]} 11. Qd2 {[%clk 0:02:46]}  a6 {[%clk 0:02:44]} 12. Na4 {[%clk 0:02:41]}  b5 {[%clk 0:02:39]} 13. Nc3 {[%clk 0:02:41]}  c5 {[%clk 0:02:38]} 14. dxc5 {[%clk 0:02:40]}  Nxc5 {[%clk 0:02:37]} 15. Nd4 {[%clk 0:02:35]}  Bg6 {[%clk 0:02:35]} 16. f4 {[%clk 0:02:32]}  b4 {[%clk 0:02:28]} 17. Nd1 {[%clk 0:02:30]}  Ne4 {[%clk 0:02:28]} 18. Qe3 {[%clk 0:02:30]}  Nd7 {[%clk 0:02:24]} 19. c3 {[%clk 0:02:27]}  bxc3 {[%clk 0:02:22]} 20. Nxc3 {[%clk 0:02:27]}  O-O {[%clk 0:02:20]} 21. Nxe4 {[%clk 0:02:25]}  Bxe4 {[%clk 0:02:19]} 22. Bd3 {[%clk 0:02:21]}  Bxd3 {[%clk 0:02:17]} 23. Qxd3 {[%clk 0:02:22]}  Nc5 {[%clk 0:02:17]} 24. Qa3 {[%clk 0:02:21]}  Rfe8 {[%clk 0:02:15]} 25. Rac1 {[%clk 0:02:18]}  Ne4 {[%clk 0:02:15]} 26. Qxe7 {[%clk 0:02:17]}  Rxe7 {[%clk 0:02:14]} 27. Rc6 {[%clk 0:02:11]}  g6 {[%clk 0:02:14]} 28. Rfc1 {[%clk 0:02:11]}  Rb7 {[%clk 0:02:12]} 29. b3 {[%clk 0:02:09]}  a5 {[%clk 0:02:12]} 30. Rc7 {[%clk 0:02:05]}  Rab8 {[%clk 0:02:11]} 31. Kf1 {[%clk 0:02:00]}  Rxc7 {[%clk 0:02:03]} 32. Rxc7 {[%clk 0:02:01]}  a4 {[%clk 0:02:01]} 33. Ke2 {[%clk 0:01:58]}  axb3 {[%clk 0:02:00]} 34. axb3 {[%clk 0:01:55]}  Rb4 {[%clk 0:02:00]} 35. Kd3 {[%clk 0:01:52]}  Rb8 {[%clk 0:01:53]} 36. Kc2 {[%clk 0:01:39]}  h5 {[%clk 0:01:51]} 37. h4 {[%clk 0:01:37]}  Ra8 {[%clk 0:01:47]} 38. Kb2 {[%clk 0:01:36]}  Rb8 {[%clk 0:01:44]} 39. Nc6 {[%clk 0:01:35]}  Rb6 {[%clk 0:01:41]} 40. Ne7+ {[%clk 0:01:30]}  Kg7 {[%clk 0:01:41]} 41. Nc8 {[%clk 0:01:27]}  Rb8 {[%clk 0:01:35]} 42. Nd6 {[%clk 0:01:27]}  Nxd6 {[%clk 0:01:35]} 43. exd6 {[%clk 0:01:27]}  Rd8 {[%clk 0:01:35]} 44. d7 {[%clk 0:01:23]}  Kf6 {[%clk 0:01:35]} 45. Kc3 {[%clk 0:01:14]}  Ke7 {[%clk 0:01:31]} 46. b4 {[%clk 0:01:10]}  Rxd7 {[%clk 0:01:31]} 47. Rc8 {[%clk 0:01:10]}  Rb7 {[%clk 0:01:30]} 48. g3 {[%clk 0:01:06]}  Kf6 {[%clk 0:01:30]} 49. Rf8 {[%clk 0:00:58]}  Kf5 {[%clk 0:01:29]} 50. b5 {[%clk 0:00:58]}  Kg4 {[%clk 0:01:29]} 51. Kb4 {[%clk 0:00:57]}  Kxg3 {[%clk 0:01:29]} 52. Kc5 {[%clk 0:00:57]}  Kxh4 {[%clk 0:01:23]} 53. Kc6 {[%clk 0:00:57]}  Re7 {[%clk 0:01:20]} 54. Kd6 {[%clk 0:00:53]}  Rb7 {[%clk 0:01:19]} 55. Kc6 {[%clk 0:00:53]}  Rxb5 {[%clk 0:01:19]} 56. Kxb5 {[%clk 0:00:53]}  Kg4 {[%clk 0:01:14]} 57. Rxf7 {[%clk 0:00:53]}  h4 {[%clk 0:01:14]} 58. Rf6 {[%clk 0:00:52]}  h3 {[%clk 0:01:13]} 59. Rxg6+ {[%clk 0:00:46]}  Kxf4 {[%clk 0:01:13]} 60. Rxe6 {[%clk 0:00:43]}  h2 {[%clk 0:01:10]} 61. Rh6 {[%clk 0:00:43]}  Kg3 {[%clk 0:01:10]} 62. Kc5 {[%clk 0:00:42]}  Kg2 {[%clk 0:01:10]} 63. Kxd5 {[%clk 0:00:42]}  h1=Q {[%clk 0:01:09]} 64. Rxh1 {[%clk 0:00:43]}  Kxh1 {[%clk 0:01:08]} 1/2-1/2


[Site "https://www.chess.com"]

[Event "Titled Tuesday Blitz November 07 Late 2023"]
[White "kalxandria"]
[Black "Ward, Ieuan C"]
[BlackFideId "406627"]
[WhiteElo "2191"]
[BlackElo "2344"]
[Result "1-0"]
[Round "6"]
[TimeControl "180+1"]
[Date "2023.11.07"]
[WhiteClock "0:01:28"]
[BlackClock "0:01:25"]
[Board "119"]

1. e4 {[%clk 0:03:00]}  c5 {[%clk 0:02:59]} 2. Nf3 {[%clk 0:03:00]}  d6 {[%clk 0:02:59]} 3. d4 {[%clk 0:03:00]}  cxd4 {[%clk 0:03:00]} 4. Nxd4 {[%clk 0:03:01]}  Nf6 {[%clk 0:03:00]} 5. Nc3 {[%clk 0:03:00]}  a6 {[%clk 0:03:00]} 6. Bg5 {[%clk 0:02:59]}  e6 {[%clk 0:03:00]} 7. f4 {[%clk 0:02:59]}  Be7 {[%clk 0:03:00]} 8. Qf3 {[%clk 0:02:57]}  Qc7 {[%clk 0:02:59]} 9. O-O-O {[%clk 0:02:56]}  Nbd7 {[%clk 0:02:59]} 10. g4 {[%clk 0:02:55]}  b5 {[%clk 0:02:58]} 11. Bxf6 {[%clk 0:02:53]}  Nxf6 {[%clk 0:02:57]} 12. g5 {[%clk 0:02:51]}  Nd7 {[%clk 0:02:57]} 13. Rg1 {[%clk 0:02:50]}  b4 {[%clk 0:02:56]} 14. Nce2 {[%clk 0:02:48]}  Bb7 {[%clk 0:02:52]} 15. f5 {[%clk 0:02:45]}  Ne5 {[%clk 0:02:51]} 16. Qh3 {[%clk 0:02:41]}  Bxe4 {[%clk 0:02:28]} 17. fxe6 {[%clk 0:02:37]}  f6 {[%clk 0:02:14]} 18. gxf6 {[%clk 0:02:27]}  Bxf6 {[%clk 0:02:12]} 19. Ng3 {[%clk 0:02:14]}  Bg6 {[%clk 0:01:58]} 20. Ngf5 {[%clk 0:02:11]}  Rc8 {[%clk 0:01:45]} 21. Bxa6 {[%clk 0:01:49]}  O-O {[%clk 0:01:33]} 22. Bxc8 {[%clk 0:01:43]}  Rxc8 {[%clk 0:01:34]} 23. e7 {[%clk 0:01:33]}  Bxf5 {[%clk 0:01:29]} 24. Qxf5 {[%clk 0:01:29]}  Qxe7 {[%clk 0:01:25]} 25. Qxc8+ {[%clk 0:01:28]} 1-0


[Site "https://www.chess.com"]

[Event "Titled Tuesday Blitz November 07 Late 2023"]
[White "Ghosh, Chanchal Kumer"]
[Black "TheAlienParty"]
[WhiteFideId "10201858"]
[WhiteElo "2068"]
[BlackElo "2337"]
[Result "0-1"]
[Round "6"]
[TimeControl "180+1"]
[Date "2023.11.07"]
[WhiteClock "0:00:00"]
[BlackClock "0:00:49"]
[Board "120"]

1. e4 {[%clk 0:03:00]}  e5 {[%clk 0:02:54]} 2. Nf3 {[%clk 0:02:49]}  Nc6 {[%clk 0:02:54]} 3. Bc4 {[%clk 0:02:46]}  Bc5 {[%clk 0:02:52]} 4. c3 {[%clk 0:02:45]}  Nf6 {[%clk 0:02:52]} 5. d4 {[%clk 0:02:44]}  exd4 {[%clk 0:02:51]} 6. cxd4 {[%clk 0:02:45]}  Bb4+ {[%clk 0:02:40]} 7. Nc3 {[%clk 0:02:43]}  Nxe4 {[%clk 0:02:37]} 8. O-O {[%clk 0:02:43]}  Bxc3 {[%clk 0:02:35]} 9. d5 {[%clk 0:02:42]}  Ne7 {[%clk 0:02:26]} 10. bxc3 {[%clk 0:02:35]}  d6 {[%clk 0:02:22]} 11. Re1 {[%clk 0:02:04]}  Nf6 {[%clk 0:02:17]} 12. Bg5 {[%clk 0:01:54]}  O-O {[%clk 0:02:10]} 13. Bxf6 {[%clk 0:01:06]}  gxf6 {[%clk 0:02:08]} 14. Nd4 {[%clk 0:00:59]}  Ng6 {[%clk 0:02:01]} 15. Qf3 {[%clk 0:00:50]}  Bd7 {[%clk 0:01:51]} 16. Nf5 {[%clk 0:00:42]}  Bxf5 {[%clk 0:01:48]} 17. Qxf5 {[%clk 0:00:42]}  Kg7 {[%clk 0:01:48]} 18. Bd3 {[%clk 0:00:38]}  Re8 {[%clk 0:01:46]} 19. h4 {[%clk 0:00:36]}  Re5 {[%clk 0:01:41]} 20. Qg4 {[%clk 0:00:27]}  h5 {[%clk 0:01:39]} 21. Qg3 {[%clk 0:00:21]}  Rxd5 {[%clk 0:01:16]} 22. Rad1 {[%clk 0:00:17]}  f5 {[%clk 0:01:11]} 23. Bc2 {[%clk 0:00:13]}  Rxd1 {[%clk 0:01:08]} 24. Rxd1 {[%clk 0:00:11]}  Qxh4 {[%clk 0:01:07]} 25. Bxf5 {[%clk 0:00:10]}  Qxg3 {[%clk 0:01:06]} 26. fxg3 {[%clk 0:00:11]}  Re8 {[%clk 0:01:03]} 27. Rb1 {[%clk 0:00:11]}  b6 {[%clk 0:01:02]} 28. a4 {[%clk 0:00:10]}  a5 {[%clk 0:01:01]} 29. Rd1 {[%clk 0:00:09]}  Re5 {[%clk 0:01:01]} 30. Bc2 {[%clk 0:00:07]}  f5 {[%clk 0:01:00]} 31. Rd3 {[%clk 0:00:06]}  Kf6 {[%clk 0:00:59]} 32. Kf2 {[%clk 0:00:05]}  Rc5 {[%clk 0:00:57]} 33. Rf3 {[%clk 0:00:05]}  Kg5 {[%clk 0:00:53]} 34. Ke3 {[%clk 0:00:04]}  Rxc3+ {[%clk 0:00:52]} 35. Kd4 {[%clk 0:00:00]}  Rxc2 {[%clk 0:00:49]} 0-1


[Site "https://www.chess.com"]

[Event "Titled Tuesday Blitz November 07 Late 2023"]
[White "Hajiyev, Kanan"]
[Black "Cooper, Aaron"]
[WhiteFideId "13404148"]
[BlackFideId "2634945"]
[WhiteElo "2470"]
[BlackElo "2245"]
[Result "1-0"]
[Round "6"]
[TimeControl "180+1"]
[Date "2023.11.07"]
[WhiteClock "0:00:52"]
[BlackClock "0:00:00"]
[Board "122"]

1. d4 {[%clk 0:03:00]}  g6 {[%clk 0:02:59]} 2. Nf3 {[%clk 0:03:01]}  Bg7 {[%clk 0:03:00]} 3. g3 {[%clk 0:03:02]}  d6 {[%clk 0:03:00]} 4. Bg2 {[%clk 0:03:02]}  Nf6 {[%clk 0:03:00]} 5. O-O {[%clk 0:03:03]}  O-O {[%clk 0:03:00]} 6. b3 {[%clk 0:03:04]}  c5 {[%clk 0:03:00]} 7. Bb2 {[%clk 0:03:05]}  cxd4 {[%clk 0:03:00]} 8. Nxd4 {[%clk 0:03:06]}  Nbd7 {[%clk 0:03:00]} 9. c4 {[%clk 0:03:06]}  a6 {[%clk 0:03:00]} 10. Nc3 {[%clk 0:03:06]}  Rb8 {[%clk 0:02:55]} 11. Qd2 {[%clk 0:03:06]}  Re8 {[%clk 0:02:54]} 12. Rad1 {[%clk 0:03:07]}  Qa5 {[%clk 0:02:53]} 13. Rfe1 {[%clk 0:03:07]}  Ne5 {[%clk 0:02:39]} 14. h3 {[%clk 0:03:02]}  Bd7 {[%clk 0:02:38]} 15. Kh2 {[%clk 0:02:58]}  Nc6 {[%clk 0:02:35]} 16. Nd5 {[%clk 0:02:54]}  Qxd2 {[%clk 0:02:34]} 17. Nxf6+ {[%clk 0:02:53]}  Bxf6 {[%clk 0:02:27]} 18. Rxd2 {[%clk 0:02:54]}  Bxd4 {[%clk 0:02:15]} 19. Bxd4 {[%clk 0:02:55]}  Nxd4 {[%clk 0:02:15]} 20. Rxd4 {[%clk 0:02:55]}  Be6 {[%clk 0:02:15]} 21. Red1 {[%clk 0:02:48]}  Rec8 {[%clk 0:02:15]} 22. f4 {[%clk 0:02:46]}  b5 {[%clk 0:02:13]} 23. cxb5 {[%clk 0:02:39]}  axb5 {[%clk 0:02:12]} 24. e4 {[%clk 0:02:31]}  Rc2 {[%clk 0:01:59]} 25. R1d2 {[%clk 0:02:31]}  Rbc8 {[%clk 0:01:59]} 26. g4 {[%clk 0:02:31]}  f6 {[%clk 0:01:40]} 27. f5 {[%clk 0:02:28]}  Bf7 {[%clk 0:01:39]} 28. h4 {[%clk 0:02:16]}  R8c5 {[%clk 0:01:37]} 29. Bf3 {[%clk 0:02:12]}  Kg7 {[%clk 0:01:01]} 30. Kg2 {[%clk 0:02:12]}  g5 {[%clk 0:00:52]} 31. h5 {[%clk 0:02:05]}  h6 {[%clk 0:00:52]} 32. Kf2 {[%clk 0:02:05]}  Be8 {[%clk 0:00:44]} 33. Ke2 {[%clk 0:02:00]}  Bc6 {[%clk 0:00:37]} 34. Rxc2 {[%clk 0:01:56]}  Rxc2+ {[%clk 0:00:36]} 35. Rd2 {[%clk 0:01:57]}  Rc5 {[%clk 0:00:29]} 36. Kd3 {[%clk 0:01:55]}  Kf7 {[%clk 0:00:29]} 37. Rc2 {[%clk 0:01:45]}  Ke8 {[%clk 0:00:29]} 38. b4 {[%clk 0:01:45]}  Rxc2 {[%clk 0:00:24]} 39. Kxc2 {[%clk 0:01:46]}  Kd7 {[%clk 0:00:24]} 40. Kc3 {[%clk 0:01:46]}  Kc7 {[%clk 0:00:24]} 41. Kd4 {[%clk 0:01:47]}  Kd7 {[%clk 0:00:20]} 42. Bd1 {[%clk 0:01:47]}  e6 {[%clk 0:00:13]} 43. fxe6+ {[%clk 0:01:43]}  Kxe6 {[%clk 0:00:14]} 44. Bb3+ {[%clk 0:01:44]}  Ke7 {[%clk 0:00:15]} 45. Bd5 {[%clk 0:01:45]}  Bd7 {[%clk 0:00:15]} 46. Bb7 {[%clk 0:01:21]}  Bxg4 {[%clk 0:00:15]} 47. Ba6 {[%clk 0:01:21]}  Bd7 {[%clk 0:00:15]} 48. Kd5 {[%clk 0:01:14]}  g4 {[%clk 0:00:15]} 49. Kd4 {[%clk 0:01:14]}  Ke6 {[%clk 0:00:14]} 50. Bb7 {[%clk 0:01:09]}  f5 {[%clk 0:00:14]} 51. Ke3 {[%clk 0:01:03]}  Ke5 {[%clk 0:00:13]} 52. exf5 {[%clk 0:01:02]}  Kxf5 {[%clk 0:00:10]} 53. Be4+ {[%clk 0:01:01]}  Kg5 {[%clk 0:00:11]} 54. Bg6 {[%clk 0:01:01]}  Bf5 {[%clk 0:00:09]} 55. Be8 {[%clk 0:01:00]}  Bb1 {[%clk 0:00:04]} 56. a3 {[%clk 0:00:54]}  Ba2 {[%clk 0:00:04]} 57. Bxb5 {[%clk 0:00:53]}  Kxh5 {[%clk 0:00:05]} 58. Be8+ {[%clk 0:00:51]}  Kg5 {[%clk 0:00:05]} 59. b5 {[%clk 0:00:52]}  Bd5 {[%clk 0:00:00]} 60. Bc6 {[%clk 0:00:52]} 1-0


[Site "https://www.chess.com"]

[Event "Titled Tuesday Blitz November 07 Late 2023"]
[White "Dwilewicz, Katarzyna"]
[Black "Alice, Mateus Felizardo Viageiro"]
[WhiteFideId "1148486"]
[BlackFideId "14800047"]
[WhiteElo "2347"]
[BlackElo "2196"]
[Result "1-0"]
[Round "6"]
[TimeControl "180+1"]
[Date "2023.11.07"]
[WhiteClock "0:01:51"]
[BlackClock "0:00:26"]
[Board "124"]

1. e4 {[%clk 0:03:00]}  c5 {[%clk 0:02:19]} 2. Ne2 {[%clk 0:02:57]}  d6 {[%clk 0:02:19]} 3. g3 {[%clk 0:02:54]}  Nf6 {[%clk 0:02:19]} 4. Bg2 {[%clk 0:02:54]}  Nc6 {[%clk 0:02:18]} 5. c3 {[%clk 0:02:55]}  e6 {[%clk 0:02:18]} 6. d4 {[%clk 0:02:55]}  cxd4 {[%clk 0:02:16]} 7. cxd4 {[%clk 0:02:55]}  Be7 {[%clk 0:02:15]} 8. O-O {[%clk 0:02:55]}  O-O {[%clk 0:02:15]} 9. Nbc3 {[%clk 0:02:56]}  a6 {[%clk 0:02:14]} 10. h3 {[%clk 0:02:55]}  Bd7 {[%clk 0:02:10]} 11. Be3 {[%clk 0:02:55]}  Rc8 {[%clk 0:02:09]} 12. Rc1 {[%clk 0:02:56]}  Na5 {[%clk 0:02:08]} 13. b3 {[%clk 0:02:55]}  e5 {[%clk 0:02:04]} 14. Qd2 {[%clk 0:02:51]}  Nc6 {[%clk 0:01:52]} 15. Rfd1 {[%clk 0:02:50]}  b5 {[%clk 0:01:49]} 16. Nd5 {[%clk 0:02:40]}  exd4 {[%clk 0:01:42]} 17. Nxd4 {[%clk 0:02:39]}  Nxd5 {[%clk 0:01:37]} 18. exd5 {[%clk 0:02:39]}  Nxd4 {[%clk 0:01:37]} 19. Bxd4 {[%clk 0:02:37]}  Bf6 {[%clk 0:01:36]} 20. Rxc8 {[%clk 0:02:07]}  Re8 {[%clk 0:01:20]} 21. Rxd8 {[%clk 0:02:06]}  Rxd8 {[%clk 0:01:03]} 22. Bxf6 {[%clk 0:02:02]}  gxf6 {[%clk 0:01:02]} 23. Qf4 {[%clk 0:02:03]}  Rc8 {[%clk 0:00:58]} 24. Qxd6 {[%clk 0:02:00]}  Be8 {[%clk 0:00:57]} 25. Qxf6 {[%clk 0:01:56]}  b4 {[%clk 0:00:54]} 26. d6 {[%clk 0:01:56]}  Bd7 {[%clk 0:00:52]} 27. Qe7 {[%clk 0:01:56]}  Bf5 {[%clk 0:00:50]} 28. d7 {[%clk 0:01:55]}  Bxd7 {[%clk 0:00:47]} 29. Qxd7 {[%clk 0:01:55]}  Rf8 {[%clk 0:00:48]} 30. Rd4 {[%clk 0:01:54]}  h5 {[%clk 0:00:44]} 31. Bd5 {[%clk 0:01:53]}  Kg7 {[%clk 0:00:42]} 32. Rf4 {[%clk 0:01:54]}  Kh6 {[%clk 0:00:39]} 33. Rxf7 {[%clk 0:01:55]}  Rg8 {[%clk 0:00:37]} 34. Rf6+ {[%clk 0:01:53]}  Rg6 {[%clk 0:00:36]} 35. Rxg6+ {[%clk 0:01:53]}  Kxg6 {[%clk 0:00:34]} 36. Qf7+ {[%clk 0:01:54]}  Kg5 {[%clk 0:00:32]} 37. Be4 {[%clk 0:01:51]}  h4 {[%clk 0:00:28]} 38. Qg7+ {[%clk 0:01:50]}  Kh5 {[%clk 0:00:26]} 39. g4# {[%clk 0:01:51]} 1-0


[Site "https://www.chess.com"]

[Event "Titled Tuesday Blitz November 07 Late 2023"]
[White "rikchessmx"]
[Black "Ismayilova, Khanim"]
[BlackFideId "13429019"]
[WhiteElo "2338"]
[BlackElo "2164"]
[Result "1-0"]
[Round "6"]
[TimeControl "180+1"]
[Date "2023.11.07"]
[WhiteClock "0:01:18"]
[BlackClock "0:00:02"]
[Board "125"]

1. e4 {[%clk 0:03:00]}  c5 {[%clk 0:02:58]} 2. Nf3 {[%clk 0:02:55]}  Nc6 {[%clk 0:02:58]} 3. d4 {[%clk 0:02:56]}  cxd4 {[%clk 0:02:58]} 4. Nxd4 {[%clk 0:02:57]}  Nf6 {[%clk 0:02:58]} 5. Nxc6 {[%clk 0:02:57]}  bxc6 {[%clk 0:02:58]} 6. Bd3 {[%clk 0:02:58]}  e6 {[%clk 0:02:58]} 7. O-O {[%clk 0:02:56]}  d5 {[%clk 0:02:58]} 8. Qe2 {[%clk 0:02:55]}  Bc5 {[%clk 0:02:58]} 9. Nc3 {[%clk 0:02:55]}  O-O {[%clk 0:02:56]} 10. Bg5 {[%clk 0:02:54]}  h6 {[%clk 0:02:54]} 11. Bh4 {[%clk 0:02:52]}  Be7 {[%clk 0:02:53]} 12. e5 {[%clk 0:02:45]}  Nd7 {[%clk 0:02:53]} 13. Bg3 {[%clk 0:02:45]}  Bh4 {[%clk 0:02:46]} 14. Na4 {[%clk 0:02:43]}  Bxg3 {[%clk 0:02:45]} 15. hxg3 {[%clk 0:02:43]}  c5 {[%clk 0:02:44]} 16. c4 {[%clk 0:02:41]}  Bb7 {[%clk 0:02:42]} 17. b3 {[%clk 0:02:41]}  d4 {[%clk 0:02:42]} 18. Rae1 {[%clk 0:02:34]}  Qc7 {[%clk 0:02:40]} 19. f4 {[%clk 0:02:31]}  Nb6 {[%clk 0:02:35]} 20. Nb2 {[%clk 0:02:29]}  a5 {[%clk 0:02:33]} 21. a4 {[%clk 0:02:28]}  Qc6 {[%clk 0:02:26]} 22. Rf2 {[%clk 0:02:27]}  Nd7 {[%clk 0:02:16]} 23. g4 {[%clk 0:02:25]}  Qc7 {[%clk 0:02:12]} 24. g5 {[%clk 0:02:22]}  hxg5 {[%clk 0:02:10]} 25. Qh5 {[%clk 0:02:20]}  g6 {[%clk 0:02:09]} 26. Qxg5 {[%clk 0:02:20]}  Qd8 {[%clk 0:02:01]} 27. Qh6 {[%clk 0:02:16]}  Qe7 {[%clk 0:01:52]} 28. Be4 {[%clk 0:02:14]}  Bxe4 {[%clk 0:01:48]} 29. Rxe4 {[%clk 0:02:14]}  Rfd8 {[%clk 0:01:45]} 30. Rf3 {[%clk 0:02:13]}  Qf8 {[%clk 0:01:45]} 31. Qg5 {[%clk 0:02:13]}  Qg7 {[%clk 0:01:43]} 32. Nd3 {[%clk 0:02:12]}  Rab8 {[%clk 0:01:37]} 33. Nf2 {[%clk 0:02:12]}  Re8 {[%clk 0:01:35]} 34. Ng4 {[%clk 0:02:11]}  Rb7 {[%clk 0:01:20]} 35. Rh3 {[%clk 0:02:10]}  Reb8 {[%clk 0:01:17]} 36. Nf6+ {[%clk 0:02:09]}  Kf8 {[%clk 0:01:05]} 37. Rh7 {[%clk 0:02:08]}  Nxf6 {[%clk 0:01:02]} 38. Rxg7 {[%clk 0:02:07]}  Nxe4 {[%clk 0:00:51]} 39. Qh6 {[%clk 0:02:06]}  Rxb3 {[%clk 0:00:51]} 40. f5 {[%clk 0:01:50]}  Rb1+ {[%clk 0:00:16]} 41. Kh2 {[%clk 0:01:49]}  Nf2 {[%clk 0:00:17]} 42. Qh8+ {[%clk 0:01:43]}  Ke7 {[%clk 0:00:17]} 43. Qh4+ {[%clk 0:01:43]}  Kf8 {[%clk 0:00:15]} 44. f6 {[%clk 0:01:43]}  Rh1+ {[%clk 0:00:14]} 45. Kg3 {[%clk 0:01:44]}  Rxh4 {[%clk 0:00:14]} 46. Kxh4 {[%clk 0:01:43]}  d3 {[%clk 0:00:10]} 47. Kg3 {[%clk 0:01:40]}  d2 {[%clk 0:00:10]} 48. Rh7 {[%clk 0:01:40]}  Rb3+ {[%clk 0:00:07]} 49. Kxf2 {[%clk 0:01:39]}  Ke8 {[%clk 0:00:06]} 50. Ke2 {[%clk 0:01:39]}  Rb2 {[%clk 0:00:05]} 51. Rh8+ {[%clk 0:01:36]}  Kd7 {[%clk 0:00:05]} 52. Rf8 {[%clk 0:01:37]}  d1=Q+ {[%clk 0:00:02]} 53. Kxd1 {[%clk 0:01:36]}  Rxg2 {[%clk 0:00:03]} 54. Rxf7+ {[%clk 0:01:36]}  Ke8 {[%clk 0:00:03]} 55. Re7+ {[%clk 0:01:35]}  Kf8 {[%clk 0:00:04]} 56. Rxe6 {[%clk 0:01:35]}  Rf2 {[%clk 0:00:03]} 57. Rc6 {[%clk 0:01:30]}  g5 {[%clk 0:00:03]} 58. Rxc5 {[%clk 0:01:30]}  g4 {[%clk 0:00:04]} 59. Ke1 {[%clk 0:01:31]}  g3 {[%clk 0:00:04]} 60. Rd5 {[%clk 0:01:28]}  Rf3 {[%clk 0:00:03]} 61. Rd4 {[%clk 0:01:25]}  Re3+ {[%clk 0:00:03]} 62. Kf1 {[%clk 0:01:25]}  Rxe5 {[%clk 0:00:03]} 63. Kg2 {[%clk 0:01:25]}  Re6 {[%clk 0:00:03]} 64. Kxg3 {[%clk 0:01:25]}  Rxf6 {[%clk 0:00:04]} 65. Rd5 {[%clk 0:01:24]}  Ra6 {[%clk 0:00:05]} 66. Rb5 {[%clk 0:01:24]}  Ke7 {[%clk 0:00:05]} 67. Kf4 {[%clk 0:01:25]}  Kd6 {[%clk 0:00:05]} 68. Ke4 {[%clk 0:01:25]}  Rc6 {[%clk 0:00:05]} 69. Kd4 {[%clk 0:01:26]}  Ra6 {[%clk 0:00:05]} 70. c5+ {[%clk 0:01:26]}  Kc6 {[%clk 0:00:05]} 71. Kc4 {[%clk 0:01:26]}  Ra8 {[%clk 0:00:05]} 72. Rb6+ {[%clk 0:01:26]}  Kc7 {[%clk 0:00:05]} 73. Kb5 {[%clk 0:01:26]}  Ra7 {[%clk 0:00:05]} 74. Rh6 {[%clk 0:01:23]}  Ra8 {[%clk 0:00:05]} 75. Rh7+ {[%clk 0:01:23]}  Kb8 {[%clk 0:00:04]} 76. Kb6 {[%clk 0:01:22]}  Ra7 {[%clk 0:00:02]} 77. Rxa7 {[%clk 0:01:21]}  Kc8 {[%clk 0:00:02]} 78. Rxa5 {[%clk 0:01:20]}  Kb8 {[%clk 0:00:02]} 79. c6 {[%clk 0:01:18]}  Kc8 {[%clk 0:00:02]} 80. Ra8# {[%clk 0:01:18]} 1-0


[Site "https://www.chess.com"]